fUST/lending_fUST_20250628
["ID","MTS","AMOUNT","RATE_DAILY","PERIOD"]
[368311650,1751110249673,-470.85,0.00020547,2]
[368311651,1751110249683,-460.0,0.00020547,2]
[368311652,1751110249692,-460.0,0.00020547,2]
[368311653,1751110249701,-760.76,0.00020547,2]
[368311654,1751110249710,-1153.17,0.00020547,2]
[368311655,1751110249720,-460.0,0.00020547,2]
[368311656,1751110249729,-3234.38,0.000206,2]
[368311657,1751110249738,-711.45586979,0.00020626,2]
[368311658,1751110249748,-363.222,0.00020676,2]
[368311659,1751110249757,-6430.11684443,0.00020728,3]
[368311660,1751110249767,-1500.0,0.00020777,2]
[368311661,1751110249776,-1500.0,0.00020777,2]
[368311662,1751110249785,-1500.0,0.00020816,2]
[368311663,1751110249795,-460.0,0.00020821,2]
[368311664,1751110249804,-460.0,0.00020821,2]
[368311665,1751110249814,-460.0,0.00020821,2]
[368311666,1751110249825,-460.0,0.00020821,2]
[368311667,1751110249834,-478.14,0.00020821,2]
[368311668,1751110249844,-460.0,0.00020821,2]
[368311669,1751110249853,-460.0,0.00020821,2]
[368311670,1751110249863,-460.0,0.00020821,2]
[368311671,1751110249873,-661.55,0.00020821,2]
[368311672,1751110249884,-460.0,0.00020821,2]
[368311673,1751110249894,-460.0,0.00020821,2]
[368311674,1751110249904,-826.79,0.00020821,2]
[368311675,1751110249915,-460.0,0.00020821,2]
[368311676,1751110249926,-460.0,0.00020821,2]
[368311677,1751110249937,-460.0,0.00020821,2]
[368311678,1751110249946,-1419.44,0.00020821,2]
[368311679,1751110249956,-460.0,0.00020821,2]
[368311680,1751110249966,-460.0,0.00020821,2]
[368311681,1751110249975,-460.0,0.00020821,2]
[368311682,1751110249985,-2055.86,0.00020821,2]
[368311683,1751110249994,-533.32,0.00020821,2]
[368311684,1751110250004,-460.0,0.00020821,2]
[368311685,1751110250013,-848.33,0.00020821,2]
[368311686,1751110250023,-460.0,0.00020821,2]
[368311687,1751110250033,-514.8074049,0.00020821,2]
[368311688,1751110250042,-566.96,0.00020821,2]
[368311689,1751110250051,-1706.22,0.00020821,2]
[368311690,1751110250061,-460.0,0.00020821,2]
[368311691,1751110250071,-460.0,0.00020821,2]
[368311692,1751110250080,-460.0,0.00020821,2]
[368311693,1751110250090,-460.0,0.00020821,2]
[368311694,1751110250099,-535.15,0.00020821,2]
[368311695,1751110250109,-460.0,0.00020821,2]
[368311696,1751110250118,-2065.93,0.00020821,2]
[368311697,1751110250128,-460.0,0.00020821,2]
[368311698,1751110250137,-460.0,0.00020821,2]
[368311699,1751110250147,-1948.09,0.00020821,2]
[368311700,1751110250156,-763.05,0.00020821,2]
[368311701,1751110250166,-568.54,0.00020821,2]
[368311702,1751110250175,-460.0,0.00020821,2]
[368311703,1751110250185,-2493.99,0.00020821,2]
[368311704,1751110250195,-460.0,0.00020821,2]
[368311705,1751110250204,-460.0,0.00020821,2]
[368311706,1751110250214,-1318.7,0.00020821,2]
[368311707,1751110250223,-190.67,0.00020821,2]
[368311708,1751110250233,-1478.3,0.00020821,2]
[368311709,1751110250242,-460.0,0.00020821,2]
[368311710,1751110250251,-460.0,0.00020821,2]
[368311711,1751110250261,-460.0,0.00020821,2]
[368311712,1751110250271,-460.0,0.00020821,2]
[368311713,1751110250280,-460.0,0.00020821,2]
[368311714,1751110250290,-2992.15,0.00020821,2]
[368311715,1751110250299,-460.0,0.00020821,2]
[368311716,1751110250309,-460.0,0.00020821,2]
[368311717,1751110250318,-1227.12,0.00020821,2]
[368311718,1751110250328,-1282.44,0.00020821,2]
[368311719,1751110250338,-3336.5,0.00020821,2]
[368311720,1751110250350,-460.0,0.00020821,2]
[368311721,1751110250359,-965.97,0.00020821,2]
[368311722,1751110250369,-460.0,0.00020821,2]
[368311723,1751110250378,-512.76,0.00020821,2]
[368311724,1751110250390,-1473.33,0.00020821,2]
[368311725,1751110250399,-460.0,0.00020821,2]
[368311726,1751110250409,-470.85,0.00020821,2]
[368311727,1751110250419,-460.0,0.00020821,2]
[368311728,1751110250429,-760.76,0.00020821,2]
[368311729,1751110250439,-1153.17,0.00020821,2]
[368311730,1751110250449,-460.0,0.00020821,2]
[368311731,1751110250458,-207.4,0.00020847,2]
[368311732,1751110250467,-500.0,0.00020847,2]
[368311733,1751110250476,-500.0,0.00020847,2]
[368311734,1751110250486,-666.0,0.00020847,2]
[368311735,1751110250494,-500.0,0.00020847,2]
[368311736,1751110250504,-5000.0,0.00020847,2]
[368311737,1751110250514,-500.0,0.00020847,2]
[368311738,1751110250523,-500.0,0.00020847,2]
[368311739,1751110250532,-175.04864089,0.00020847,2]
[368311740,1751110250541,-500.0,0.00020847,2]
[368311741,1751110250551,-500.0,0.00020847,2]
[368311742,1751110250560,-500.0,0.00020847,2]
[368311743,1751110250569,-500.0,0.00020847,2]
[368311744,1751110250578,-500.0,0.00020847,2]
[368311745,1751110250588,-500.0,0.00020847,2]
[368311746,1751110250597,-500.0,0.00020847,2]
[368311747,1751110250607,-500.0,0.00020847,2]
[368311748,1751110250617,-500.0,0.00020847,2]
[368311749,1751110250627,-500.0,0.00020847,2]
[368311750,1751110250637,-500.0,0.00020847,2]
[368311751,1751110250647,-500.0,0.00020847,2]
[368311752,1751110250656,-500.0,0.00020847,2]
[368311753,1751110250667,-500.0,0.00020847,2]
[368311754,1751110250677,-25000.0,0.00020847,2]
[368311755,1751110250687,-690.642,0.00020902,2]
[368311756,1751110250697,-6430.11684443,0.00020934,4]
[368311757,1751110250707,-716.195754,0.00020957,2]
[368311758,1751110250716,-269.1667008,0.00021,2]
[368311759,1751110250725,-5209.47194379,0.00021,2]
[368311760,1751110250735,-201.33996909,0.00021,2]
[368311761,1751110250744,-160.0,0.00021007,4]
[368311762,1751110250754,-742.6949969,0.00021012,2]
[368311763,1751110250763,-155.18730198,0.00021014,2]
[368311764,1751110250773,-770.17471178,0.00021067,2]
[368311765,1751110250782,-460.0,0.00021095,2]
[368311766,1751110250791,-478.36176164,0.00021095,2]
[368311767,1751110250800,-478.14,0.00021095,2]
[368311768,1751110250810,-460.0,0.00021095,2]
[368311769,1751110250820,-460.0,0.00021095,2]
[368311770,1751110250831,-661.55,0.00021095,2]
[368311771,1751110250840,-460.0,0.00021095,2]
[368311772,1751110250850,-460.0,0.00021095,2]
[368311773,1751110250860,-826.79,0.00021095,2]
[368311774,1751110250869,-460.0,0.00021095,2]
[368311775,1751110250879,-460.0,0.00021095,2]
[368311776,1751110250888,-1419.44,0.00021095,2]
[368311777,1751110250898,-460.0,0.00021095,2]
[368311778,1751110250908,-460.0,0.00021095,2]
[368311779,1751110250917,-460.0,0.00021095,2]
[368311780,1751110250928,-2055.86,0.00021095,2]
[368311781,1751110250937,-460.0,0.00021095,2]
[368311782,1751110250947,-848.33,0.00021095,2]
[368311783,1751110250957,-460.0,0.00021095,2]
[368311784,1751110250966,-566.96,0.00021095,2]
[368311785,1751110250976,-1706.22,0.00021095,2]
[368311786,1751110250986,-460.0,0.00021095,2]
[368311787,1751110250996,-460.0,0.00021095,2]
[368311788,1751110251006,-460.0,0.00021095,2]
[368311789,1751110251016,-460.0,0.00021095,2]
[368311790,1751110251026,-460.0,0.00021095,2]
[368311791,1751110251036,-2065.93,0.00021095,2]
[368311792,1751110251047,-535.15,0.00021095,2]
[368311793,1751110251058,-460.0,0.00021095,2]
[368311794,1751110251068,-460.0,0.00021095,2]
[368311795,1751110251078,-1948.09,0.00021095,2]
[368311796,1751110251088,-763.05,0.00021095,2]
[368311797,1751110251098,-568.54,0.00021095,2]
[368311798,1751110251109,-460.0,0.00021095,2]
[368311799,1751110251118,-2493.99,0.00021095,2]
[368311800,1751110251128,-460.0,0.00021095,2]
[368311801,1751110251137,-460.0,0.00021095,2]
[368311802,1751110251147,-1318.7,0.00021095,2]
[368311803,1751110251157,-1478.3,0.00021095,2]
[368311804,1751110251166,-460.0,0.00021095,2]
[368311805,1751110251176,-460.0,0.00021095,2]
[368311806,1751110251185,-460.0,0.00021095,2]
[368311807,1751110251195,-460.0,0.00021095,2]
[368311808,1751110251205,-460.0,0.00021095,2]
[368311809,1751110251215,-2992.15,0.00021095,2]
[368311810,1751110251224,-460.0,0.00021095,2]
[368311811,1751110251233,-460.0,0.00021095,2]
[368311812,1751110251243,-1227.12,0.00021095,2]
[368311813,1751110251253,-1282.44,0.00021095,2]
[368311814,1751110251263,-3336.5,0.00021095,2]
[368311815,1751110251272,-460.0,0.00021095,2]
[368311816,1751110251281,-965.97,0.00021095,2]
[368311817,1751110251291,-512.76,0.00021095,2]
[368311818,1751110251301,-1473.33,0.00021095,2]
[368311819,1751110251310,-460.0,0.00021095,2]
[368311820,1751110251320,-470.85,0.00021095,2]
[368311821,1751110251330,-460.0,0.00021095,2]
[368311822,1751110251339,-760.76,0.00021095,2]
[368311823,1751110251349,-1153.17,0.00021095,2]
[368311824,1751110251359,-460.0,0.00021095,2]
[368311825,1751110251369,-334.14886311,0.00021122,2]
[368311826,1751110251378,-6430.11684443,0.00021141,4]
[368311827,1751110251388,-711.45586979,0.00021262,2]
[368311828,1751110251398,-155.187302,0.00021288,2]
[368311829,1751110251408,-155.18730198,0.00021288,2]
[368311830,1751110251418,-163.0,0.000213,5]
[368311831,1751110251428,-163.0,0.000213,5]
[368311832,1751110251437,-163.0,0.000213,4]
[368311833,1751110251448,-163.0,0.000213,4]
[368311834,1751110251457,-163.0,0.000213,3]
[368311835,1751110251467,-154.97481369,0.000213,3]
[368311836,1751110251476,-1678.67757898,0.00021325,2]
[368311837,1751110251486,-6430.11684443,0.00021348,5]
[368311838,1751110251496,-460.0,0.00021369,2]
[368311839,1751110251505,-478.14,0.00021369,2]
[368311840,1751110251515,-460.0,0.00021369,2]
[368311841,1751110251525,-233.72015984,0.00021369,2]
[368311842,1751110251534,-661.55,0.00021369,2]
[368311843,1751110251544,-460.0,0.00021369,2]
[368311844,1751110251554,-460.0,0.00021369,2]
[368311845,1751110251563,-826.79,0.00021369,2]
[368311846,1751110251572,-460.0,0.00021369,2]
[368311847,1751110251582,-1419.44,0.00021369,2]
[368311848,1751110251591,-460.0,0.00021369,2]
[368311849,1751110251601,-460.0,0.00021369,2]
[368311850,1751110251610,-460.0,0.00021369,2]
[368311851,1751110251620,-2055.86,0.00021369,2]
[368311852,1751110251630,-460.0,0.00021369,2]
[368311853,1751110251640,-848.33,0.00021369,2]
[368311854,1751110251650,-460.0,0.00021369,2]
[368311855,1751110251660,-566.96,0.00021369,2]
[368311856,1751110251669,-1706.22,0.00021369,2]
[368311857,1751110251679,-460.0,0.00021369,2]
[368311858,1751110251688,-460.0,0.00021369,2]
[368311859,1751110251698,-460.0,0.00021369,2]
[368311860,1751110251708,-460.0,0.00021369,2]
[368311861,1751110251717,-460.0,0.00021369,2]
[368311862,1751110251726,-2065.93,0.00021369,2]
[368311863,1751110251736,-535.15,0.00021369,2]
[368311864,1751110251746,-460.0,0.00021369,2]
[368311865,1751110251755,-460.0,0.00021369,2]
[368311866,1751110251765,-1948.09,0.00021369,2]
[368311867,1751110251876,-763.05,0.00021369,2]
[368311868,1751110251886,-568.54,0.00021369,2]
[368311869,1751110251895,-2493.99,0.00021369,2]
[368311870,1751110251903,-460.0,0.00021369,2]
[368311871,1751110251912,-460.0,0.00021369,2]
[368311872,1751110251921,-1318.7,0.00021369,2]
[368311873,1751110251930,-1478.3,0.00021369,2]
[368311874,1751110251940,-463.0,0.00021369,2]
[368311875,1751110251950,-460.0,0.00021369,2]
[368311876,1751110251960,-460.0,0.00021369,2]
[368311877,1751110251969,-460.0,0.00021369,2]
[368311878,1751110251978,-460.0,0.00021369,2]
[368311879,1751110251987,-2992.15,0.00021369,2]
[368311880,1751110251996,-460.0,0.00021369,2]
[368311881,1751110252006,-460.0,0.00021369,2]
[368311882,1751110252015,-1227.12,0.00021369,2]
[368311883,1751110252024,-1282.44,0.00021369,2]
[368311884,1751110252033,-3336.5,0.00021369,2]
[368311885,1751110252042,-460.0,0.00021369,2]
[368311886,1751110252052,-965.97,0.00021369,2]
[368311887,1751110252061,-512.76,0.00021369,2]
[368311888,1751110252070,-1473.33,0.00021369,2]
[368311889,1751110252079,-460.0,0.00021369,2]
[368311890,1751110252088,-470.85,0.00021369,2]
[368311891,1751110252097,-460.0,0.00021369,2]
[368311892,1751110252106,-760.76,0.00021369,2]
[368311893,1751110252115,-1153.17,0.00021369,2]
[368311894,1751110252124,-460.0,0.00021369,2]
[368311895,1751110252133,-5000.0,0.00021395,2]
[368311896,1751110252142,-25000.0,0.00021395,2]
[368311897,1751110252151,-6430.11684443,0.00021555,5]
[368311898,1751110252160,-461.919487,0.0002156,4]
[368311899,1751110252169,-155.187302,0.00021562,2]
[368311900,1751110252178,-155.18730198,0.00021562,2]
[368311901,1751110252187,-155.18730198,0.00021562,2]
[368311902,1751110252196,-500.0,0.00021573,2]
[368311903,1751110252206,-151.0,0.00021585,5]
[368311904,1751110252215,-500.0,0.00021629,2]
[368311905,1751110252224,-36132.27827223,0.00021638,2]
[368311906,1751110252387,-666.38,0.00020547,2]
[368311907,1751110252396,-18296.97578777,0.00021638,2]
[368311908,1751110252406,-500.0,0.00021639,2]
[368311909,1751110252415,-500.0,0.00021639,2]
[368311910,1751110252424,-500.0,0.00021639,2]
[368311911,1751110252434,-500.0,0.00021639,2]
[368311912,1751110252443,-500.0,0.00021639,2]
[368311913,1751110252453,-502.71747026,0.00021639,2]
[368311914,1751110252462,-501.21430314,0.00021639,2]
[368311915,1751110252471,-501.1311395,0.00021639,2]
[368311916,1751110252480,-500.0,0.00021639,2]
[368311917,1751110252489,-183.46980929,0.00021639,2]
[368311918,1751110252498,-460.0,0.00021643,2]
[368311919,1751110252508,-478.14,0.00021643,2]
[368311920,1751110252517,-460.0,0.00021643,2]
[368311921,1751110252526,-661.55,0.00021643,2]
[368311922,1751110252535,-460.0,0.00021643,2]
[368311923,1751110252545,-460.0,0.00021643,2]
[368311924,1751110252554,-826.79,0.00021643,2]
[368311925,1751110252564,-600.00950402,0.00021643,2]
[368311926,1751110252573,-1419.44,0.00021643,2]
[368311927,1751110252582,-460.0,0.00021643,2]
[368311928,1751110252591,-460.0,0.00021643,2]
[368311929,1751110252600,-460.0,0.00021643,2]
[368311930,1751110252610,-2055.86,0.00021643,2]
[368311931,1751110252619,-460.0,0.00021643,2]
[368311932,1751110252630,-848.33,0.00021643,2]
[368311933,1751110252640,-460.0,0.00021643,2]
[368311934,1751110252649,-566.96,0.00021643,2]
[368311935,1751110252659,-1706.22,0.00021643,2]
[368311936,1751110252668,-460.0,0.00021643,2]
[368311937,1751110252677,-460.0,0.00021643,2]
[368311938,1751110252686,-460.0,0.00021643,2]
[368311939,1751110252695,-460.0,0.00021643,2]
[368311940,1751110252704,-460.0,0.00021643,2]
[368311941,1751110252715,-2065.93,0.00021643,2]
[368311942,1751110252724,-535.15,0.00021643,2]
[368311943,1751110252734,-460.0,0.00021643,2]
[368311944,1751110252744,-460.0,0.00021643,2]
[368311945,1751110252753,-1762.91101096,0.00021643,2]
[368311946,1751110252780,-28.90168932,0.00021643,2]
[368311947,1751110253099,-349.93587836,0.00019178,2]
[368311948,1751110253279,-80.06412164,0.00019178,2]
[368311949,1751110253289,-460.0,0.00019178,2]
[368311950,1751110253299,-460.0,0.00019178,2]
[368311951,1751110253308,-460.0,0.00019178,2]
[368311952,1751110253318,-312.83649756,0.00019178,2]
[368311953,1751110253327,-460.0,0.00019452,2]
[368311954,1751110253336,-460.0,0.00019452,2]
[368311955,1751110253349,-12.27476788,0.00019452,2]
[368311956,1751110454980,281.702469,0.00013699,2]
[368311958,1751110603105,24900.0,0.00018273,2]
[368311963,1751111235098,-150.81699536,0.000189,2]
[368311964,1751111235119,-189.64020742,0.00019078,2]
[368311965,1751111235142,-300.0,0.00019166,2]
[368311966,1751111235162,-2.08435279,0.00019167,2]
[368311999,1751111431930,-536.6783054,0.00019166,2]
[368312000,1751111431942,-466.53666222,0.00019166,2]
[368312002,1751111432298,-196.78503238,0.00019166,2]
[368312003,1751111432308,-340.0,0.00019167,2]
[368312004,1751111432317,-300.0,0.00019167,2]
[368312005,1751111432326,-300.0,0.00019167,2]
[368312006,1751111432336,-300.0,0.00019167,2]
[368312007,1751111432346,-498.76,0.00019168,3]
[368312008,1751111432357,-605.64,0.00019168,3]
[368312009,1751111432366,-302.82,0.00019168,3]
[368312010,1751111432376,-151.41,0.00019168,3]
[368312011,1751111432385,-400.64601437,0.00019168,3]
[368312012,1751111432399,-53.62398563,0.00019168,3]
[368312013,1751111432408,-160.0,0.00019169,2]
[368312014,1751111432418,-500.0,0.00019173,2]
[368312015,1751111432427,-500.0,0.00019173,2]
[368312016,1751111432436,-500.0,0.00019173,2]
[368312017,1751111432445,-500.0,0.00019173,2]
[368312018,1751111432454,-500.0,0.00019173,2]
[368312019,1751111432464,-439.2858162,0.00019173,2]
[368312020,1751111432475,-60.7141838,0.00019173,2]
[368312021,1751111432485,-500.0,0.00019173,2]
[368312022,1751111432494,-500.0,0.00019173,2]
[368312023,1751111432504,-496.14211294,0.00019173,2]
[368312024,1751111432513,-500.0,0.00019173,2]
[368312025,1751111432523,-500.0,0.00019173,2]
[368312026,1751111432532,-500.0,0.00019173,2]
[368312027,1751111432541,-500.0,0.00019173,2]
[368312028,1751111432550,-242.39680439,0.00019173,2]
[368312029,1751111432563,-257.60319561,0.00019173,2]
[368312030,1751111432573,-209.49610438,0.00019173,2]
[368312031,1751111432585,-248.50389562,0.00019173,2]
[368312032,1751111432595,-500.0,0.00019173,2]
[368312033,1751111432604,-500.0,0.00019173,2]
[368312034,1751111432613,-500.0,0.00019173,2]
[368312035,1751111432622,-500.0,0.00019173,2]
[368312036,1751111432632,-500.0,0.00019173,2]
[368312038,1751111432641,-500.0,0.00019173,2]
[368312040,1751111432651,-500.0,0.00019173,2]
[368312041,1751111432660,-500.0,0.00019173,2]
[368312042,1751111432670,-500.0,0.00019173,2]
[368312043,1751111432679,-500.0,0.00019173,2]
[368312044,1751111432689,-500.0,0.00019173,2]
[368312045,1751111432698,-500.0,0.00019173,2]
[368312046,1751111432707,-500.0,0.00019173,2]
[368312047,1751111432717,-441.19017269,0.00019173,2]
[368312048,1751111432729,-58.80982731,0.00019173,2]
[368312049,1751111432738,-500.0,0.00019173,2]
[368312050,1751111432748,-2.20963587,0.00019173,2]
[368312064,1751111437882,-256.41627031,0.00019177,2]
[368312066,1751111437892,-460.0,0.00019178,2]
[368312068,1751111437901,-460.0,0.00019178,2]
[368312070,1751111437911,-228.63945414,0.00019178,2]
[368312072,1751111437920,-460.0,0.00019178,2]
[368312075,1751111437930,-460.0,0.00019178,2]
[368312076,1751111437939,-460.0,0.00019178,2]
[368312078,1751111437948,-192.89041772,0.00019178,2]
[368312080,1751111437957,-460.0,0.00019178,2]
[368312083,1751111437967,-460.0,0.00019178,2]
[368312085,1751111437978,-460.0,0.00019178,2]
[368312087,1751111437987,-460.0,0.00019178,2]
[368312089,1751111437996,-460.0,0.00019178,2]
[368312091,1751111438006,-460.0,0.00019178,2]
[368312093,1751111438015,-581.21027934,0.00019178,2]
[368312095,1751111438025,-460.0,0.00019178,2]
[368312097,1751111438035,-468.18712179,0.00019178,2]
[368312099,1751111438044,-460.0,0.00019178,2]
[368312101,1751111438053,-540.0,0.00019178,2]
[368312103,1751111438062,-460.0,0.00019178,2]
[368312105,1751111438072,-460.0,0.00019178,2]
[368312107,1751111438080,-219.2682285,0.00019178,2]
[368312110,1751111438092,-240.7317715,0.00019178,2]
[368312112,1751111438102,-389.19801869,0.00019178,2]
[368312114,1751111438112,-460.0,0.00019178,2]
[368312116,1751111438124,-460.0,0.00019178,2]
[368312117,1751111438133,-460.0,0.00019178,2]
[368312119,1751111438143,-460.0,0.00019178,2]
[368312120,1751111438153,-460.0,0.00019178,2]
[368312121,1751111438162,-460.0,0.00019178,2]
[368312122,1751111438172,-460.0,0.00019178,2]
[368312123,1751111438181,-460.0,0.00019178,2]
[368312124,1751111438191,-460.0,0.00019178,2]
[368312125,1751111438200,-460.0,0.00019178,2]
[368312126,1751111438210,-460.0,0.00019178,2]
[368312127,1751111438219,-460.0,0.00019178,2]
[368312128,1751111438228,-460.0,0.00019178,2]
[368312129,1751111438238,-460.0,0.00019178,2]
[368312130,1751111438247,-618.09,0.00019178,2]
[368312131,1751111438257,-460.0,0.00019178,2]
[368312132,1751111438267,-478.99416851,0.00019178,2]
[368312133,1751111438276,-460.0,0.00019178,2]
[368312134,1751111438286,-460.0,0.00019178,2]
[368312135,1751111438296,-460.0,0.00019178,2]
[368312136,1751111438305,-460.0,0.00019178,2]
[368312137,1751111438315,-460.0,0.00019178,2]
[368312138,1751111438324,-460.0,0.00019178,2]
[368312139,1751111438333,-460.0,0.00019178,2]
[368312140,1751111438343,-347.03012095,0.00019178,2]
[368312141,1751111438352,-460.0,0.00019178,2]
[368312142,1751111438361,-460.0,0.00019178,2]
[368312143,1751111438371,-460.0,0.00019178,2]
[368312144,1751111438380,-460.0,0.00019178,2]
[368312145,1751111438390,-460.0,0.00019178,2]
[368312146,1751111438399,-460.0,0.00019178,2]
[368312147,1751111438408,-540.02375141,0.00019178,2]
[368312148,1751111438418,-460.0,0.00019178,2]
[368312149,1751111438428,-461.01459285,0.00019178,2]
[368312150,1751111438437,-460.0,0.00019178,2]
[368312151,1751111438446,-460.0,0.00019178,2]
[368312152,1751111438455,-460.73542198,0.00019178,2]
[368312153,1751111438465,-460.0,0.00019178,2]
[368312154,1751111438474,-460.0,0.00019178,2]
[368312155,1751111438484,-460.0,0.00019178,2]
[368312156,1751111438494,-170.8588023,0.00019178,2]
[368312157,1751111438503,-460.0,0.00019178,2]
[368312158,1751111438513,-460.0,0.00019178,2]
[368312159,1751111438523,-460.0,0.00019178,2]
[368312160,1751111438532,-460.0,0.00019178,2]
[368312161,1751111438542,-460.0,0.00019178,2]
[368312162,1751111438551,-460.0,0.00019178,2]
[368312163,1751111438561,-500.0,0.00019178,2]
[368312164,1751111438571,-460.0,0.00019178,2]
[368312165,1751111438581,-571.47,0.00019178,2]
[368312166,1751111438591,-460.0,0.00019178,2]
[368312167,1751111438601,-460.0,0.00019178,2]
[368312168,1751111438611,-460.0,0.00019178,2]
[368312169,1751111438620,-460.0,0.00019178,2]
[368312170,1751111438630,-460.0,0.00019178,2]
[368312171,1751111438640,-460.0,0.00019178,2]
[368312172,1751111438650,-691.39,0.00019178,2]
[368312173,1751111438659,-534.67,0.00019178,2]
[368312174,1751111438669,-460.0,0.00019178,2]
[368312175,1751111438679,-460.0,0.00019178,2]
[368312176,1751111438688,-460.0,0.00019178,2]
[368312177,1751111438697,-460.0,0.00019178,2]
[368312178,1751111438707,-460.0,0.00019178,2]
[368312179,1751111438717,-460.0,0.00019178,2]
[368312180,1751111438726,-460.0,0.00019178,2]
[368312181,1751111438736,-165.0,0.00019178,2]
[368312182,1751111438745,-460.0,0.00019178,2]
[368312183,1751111438755,-460.0,0.00019178,2]
[368312184,1751111438764,-460.0,0.00019178,2]
[368312185,1751111438774,-460.0,0.00019178,2]
[368312186,1751111438783,-342.49235274,0.00019178,2]
[368312187,1751111438794,-460.0,0.00019178,2]
[368312188,1751111438803,-460.0,0.00019178,2]
[368312189,1751111438812,-460.72125621,0.00019178,2]
[368312190,1751111438822,-460.0,0.00019178,2]
[368312191,1751111438832,-460.0,0.00019178,2]
[368312192,1751111438842,-529.27046427,0.00019178,2]
[368312193,1751111438851,-460.0,0.00019178,2]
[368312194,1751111438861,-460.0,0.00019178,2]
[368312195,1751111438870,-460.0,0.00019178,2]
[368312196,1751111438880,-460.0,0.00019178,2]
[368312197,1751111438890,-226.01840114,0.00019178,2]
[368312198,1751111438900,-460.0,0.00019178,2]
[368312199,1751111438911,-460.0,0.00019178,2]
[368312200,1751111438920,-460.0,0.00019178,2]
[368312201,1751111438929,-460.0,0.00019178,2]
[368312202,1751111438939,-460.0,0.00019178,2]
[368312203,1751111438948,-537.5,0.00019178,2]
[368312204,1751111438957,-460.0,0.00019178,2]
[368312205,1751111438966,-460.0,0.00019178,2]
[368312206,1751111438976,-460.0,0.00019178,2]
[368312207,1751111438985,-460.0,0.00019178,2]
[368312208,1751111438994,-460.0,0.00019178,2]
[368312209,1751111439003,-460.0,0.00019178,2]
[368312210,1751111439012,-460.0,0.00019178,2]
[368312211,1751111439022,-461.13946558,0.00019178,2]
[368312212,1751111439031,-500.0,0.00019178,2]
[368312213,1751111439040,-623.89917797,0.00019178,2]
[368312214,1751111439049,-460.0,0.00019178,2]
[368312215,1751111439058,-455.0,0.00019178,2]
[368312216,1751111439068,-460.0,0.00019178,2]
[368312217,1751111439077,-462.59059617,0.00019178,2]
[368312218,1751111439087,-460.0,0.00019178,2]
[368312219,1751111439096,-916.4,0.00019178,2]
[368312220,1751111439105,-460.0,0.00019178,2]
[368312221,1751111439114,-460.0,0.00019178,2]
[368312222,1751111439128,-460.0,0.00019178,2]
[368312223,1751111439137,-460.0,0.00019178,2]
[368312224,1751111439147,-460.0,0.00019178,2]
[368312225,1751111439156,-460.0,0.00019178,2]
[368312226,1751111439166,-460.0,0.00019178,2]
[368312227,1751111439175,-460.0,0.00019178,2]
[368312228,1751111439184,-460.0,0.00019178,2]
[368312229,1751111439194,-572.72,0.00019178,2]
[368312230,1751111439203,-460.0,0.00019178,2]